bitfinex/quotes_ETHUSD_20250628
["timestamp","ask_amount","ask_price","bid_price","bid_amount"]
[1751081923308,0.7,2420.5,2420.4,5.1534485]
[1751081924168,0.7,2420.5,2420.4,1.0219]
[1751081930210,0.7,2420.5,2420.4,0.2064]
[1751081930412,0.7,2420.5,2420.4,4.3379485]
[1751081934011,0.7,2420.5,2420.4,0.2064]
[1751081934544,0.7,2420.5,2420.4,4.3379485]
[1751081939332,14.79387322,2420.9,2420.4,4.3379485]
[1751081939529,3.69844092,2420.8,2420.4,4.3379485]
[1751081940329,1.97444092,2420.8,2420.4,4.3379485]
[1751081940631,3.69844092,2420.8,2420.4,0.2064]
[1751081940832,4.58747322,2420.7,2420.4,0.2064]
[1751081941038,5.41177322,2420.7,2420.4,0.2064]
[1751081941924,0.8243,2420.7,2420.4,4.33793887]
[1751081944619,1.5243,2420.7,2420.4,4.33793887]
[1751081945342,1.5243,2420.7,2420.4,0.2064]
[1751081945835,1.5243,2420.7,2420.4,4.33787414]
[1751081952550,1.5243,2420.7,2420.4,4.3378852]
[1751081961940,0.7,2420.7,2420.4,4.3378852]
[1751081962161,0.7,2420.7,2420.5,0.7578]
[1751081963366,0.7,2420.7,2420.5,4.88910473]
[1751081968664,0.7,2420.7,2420.5,4.13130473]
[1751081974472,0.7,2420.7,2420.4,4.33788701]
[1751081975453,0.7,2420.7,2420.5,4.131252]
[1751081976387,0.7,2420.7,2420.6,4.13120713]
[1751081976778,0.2064,2421.2,2420.6,1.85911362]
[1751081976980,0.8101,2421.3,2421.0,0.2064]
[1751081977180,10.8101,2421.3,2421.0,0.2064]
[1751081977381,0.8101,2421.3,2421.0,0.2064]
[1751081979394,0.8101,2421.3,2421.0,4.33691397]
[1751081979568,0.8101,2421.3,2421.0,0.2064]
[1751081982619,5.39757322,2421.3,2421.0,0.2064]
[1751081982918,8.53405611,2421.3,2421.0,0.2064]
[1751081983609,12.66412204,2421.3,2421.0,0.2064]
[1751081983915,0.7942,2421.0,2420.7,0.2064]
[1751081984513,0.7942,2421.0,2420.7,4.3374176]
[1751081984914,0.7942,2421.0,2420.7,0.2064]
[1751081986508,0.7942,2421.0,2420.7,4.33741383]
[1751081986701,0.7942,2421.0,2420.7,5.85209244]
[1751081992317,0.7942,2421.0,2420.8,4.13083943]
[1751081992629,1.0195,2421.2,2420.8,4.13083943]
[1751081993525,1.0195,2421.2,2420.7,5.85206099]
[1751082001161,1.0195,2421.2,2420.8,4.13085597]
[1751082002880,1.0195,2421.2,2420.9,4.13067393]
[1751082003051,0.8131,2421.2,2420.9,0.84680671]
[1751082003248,0.8131,2421.2,2420.9,0.2064]
[1751082004694,0.8131,2421.2,2420.9,4.33707664]
[1751082006954,0.8131,2421.2,2420.9,0.2064]
[1751082007159,10.0,2421.3,2421.0,4.13049354]
[1751082007367,10.0,2421.3,2420.9,4.33705198]
[1751082009862,10.0,2421.3,2420.9,5.26251676]
[1751082010800,10.0,2421.3,2421.0,4.13051057]
[1751082011157,10.0,2421.3,2420.9,1.13186478]
[1751082011385,10.0,2421.3,2420.9,0.2064]
[1751082011697,10.0,2421.3,2420.9,4.33709221]
[1751082012959,10.0,2421.3,2420.9,0.2064]
[1751082013160,0.7754,2421.2,2420.9,0.2064]
[1751082014385,0.7754,2421.2,2420.9,4.33706643]
[1751082015196,0.2084,2421.4,2421.0,4.13052457]
[1751082015400,0.002,2421.4,2421.1,4.13024625]
[1751082015586,0.002,2421.4,2421.2,0.41302463]
[1751082015787,0.002,2421.4,2421.1,4.33664625]
[1751082017852,0.002,2421.4,2421.2,4.13014492]
[1751082018181,0.002,2421.4,2421.1,4.33675125]
[1751082018182,0.002,2421.4,2421.3,4.1300128]
[1751082019723,0.002,2421.4,2421.3,4.3364128]
[1751082020491,0.002,2421.4,2421.3,5.1657128]
[1751082020702,0.002,2421.4,2421.3,6.76270164]
[1751082022408,0.002,2421.4,2421.3,1.80338884]
[1751082022615,0.8189,2421.4,2421.3,0.2064]
[1751082026012,0.002,2421.4,2421.3,4.3364128]
[1751082026385,0.002,2421.4,2421.3,5.1377128]
[1751082029319,0.002,2421.4,2421.3,4.3364128]
[1751082032526,0.002,2421.4,2421.3,0.2064]
[1751082044049,0.7772,2421.4,2421.3,0.2064]
[1751082044358,0.7752,2421.3,2421.0,6.672]
[1751082044514,4.90521794,2421.3,2421.0,6.672]
[1751082044716,5.87846527,2421.3,2421.0,6.672]
[1751082045247,5.87846527,2421.3,2420.9,6.8784]
[1751082045248,5.87851646,2421.3,2420.9,6.8784]
[1751082048526,1.74844733,2421.3,2420.9,6.8784]
[1751082048861,0.7752,2421.3,2420.9,6.8784]
[1751082050053,1.4752,2421.3,2420.9,6.8784]
[1751082052164,1.4752,2421.3,2420.9,11.0090947]
[1751082054741,1.4752,2421.3,2421.0,6.673]
[1751082055976,0.9852,2421.2,2420.9,6.672]
[1751082056135,2.2218379,2421.2,2420.9,6.672]
[1751082060455,6.35205579,2421.2,2420.9,6.672]
[1751082060656,0.7788,2421.1,2420.9,6.672]
[1751082063050,0.7788,2421.1,2420.7,4.33743229]
[1751082063255,0.7788,2421.1,2420.8,6.672]
[1751082065286,0.7788,2421.1,2420.7,0.2064]
[1751082065489,0.7788,2421.1,2420.8,6.672]
[1751082065490,5.5443734,2421.1,2420.8,6.672]
[1751082065793,1.41400485,2421.1,2420.8,6.672]
[1751082066291,0.7788,2421.1,2420.8,6.672]
[1751082067204,0.7788,2421.1,2420.7,0.2064]
[1751082067390,0.2064,2420.9,2420.6,6.672]
[1751082067572,0.7513,2420.8,2420.6,6.672]
[1751082069091,0.7513,2420.8,2420.5,6.672]
[1751082070093,0.7513,2420.8,2420.4,4.33779382]
[1751082070273,0.7513,2420.8,2420.5,7.18839938]
[1751082070606,0.7513,2420.8,2420.5,11.31966037]
[1751082075169,0.7513,2420.8,2420.6,4.1311987]
[1751082077799,0.7513,2420.8,2420.5,11.31970571]
[1751082080907,0.7458,2420.8,2420.5,11.31970571]
[1751082082202,0.7458,2420.8,2420.6,4.13120555]
[1751082083912,0.7458,2420.8,2420.5,11.31974686]
[1751082085711,0.7458,2420.8,2420.5,7.18839938]
[1751082085888,0.7458,2420.8,2420.5,6.672]
[1751082087821,0.7458,2420.8,2420.4,4.33790643]
[1751082088027,0.7458,2420.8,2420.5,6.672]
[1751082089125,0.7458,2420.8,2420.4,4.33790643]
[1751082089296,0.7458,2420.8,2420.6,6.672]
[1751082100341,0.2064,2420.9,2420.6,6.672]
[1751082102238,0.2064,2420.9,2420.4,0.2064]
[1751082102413,0.2064,2420.9,2420.6,6.671]
[1751082105141,10.8228,2421.2,2420.8,4.13085694]
[1751082105322,11.0292,2421.2,2420.8,4.33725694]
[1751082107154,14.0292,2421.2,2420.8,4.33725694]
[1751082107326,11.0292,2421.2,2420.8,4.33725694]
[1751082111642,1.0292,2421.2,2420.9,4.13057338]
[1751082111845,1.708,2421.3,2421.0,0.43369734]
[1751082112149,1.708,2421.3,2421.0,0.2064]
[1751082113646,1.708,2421.3,2421.0,4.33688488]
[1751082113852,1.708,2421.3,2421.0,0.2064]
[1751082117462,12.408,2421.3,2421.0,0.2064]
[1751082120977,2.408,2421.3,2421.0,0.2064]
[1751082132791,6.53802405,2421.3,2421.0,0.2064]
[1751082133466,2.408,2421.3,2421.0,0.2064]
[1751082141511,16.5380304,2421.3,2421.0,0.2064]
[1751082142377,12.408,2421.3,2421.0,0.2064]
[1751082146100,12.408,2421.3,2421.0,4.33692141]
[1751082150720,2.408,2421.3,2421.1,4.13031919]
[1751082151809,0.7,2421.3,2421.1,4.13031919]
[1751082153212,0.7,2421.3,2421.0,1.13530714]
[1751082154626,4.58530184,2421.1,2420.7,6.665]
[1751082154827,4.58530184,2421.1,2420.7,11.00243375]
[1751082155541,0.2064,2421.2,2420.7,11.00243375]
[1751082155692,0.2064,2421.2,2420.8,4.13086119]
[1751082157317,0.2064,2421.2,2420.7,11.00236558]
[1751082157526,0.2064,2421.2,2420.7,12.59635271]
[1751082160136,0.2064,2421.2,2420.8,4.1308525]
[1751082164448,0.2064,2421.2,2420.8,10.7958525]
[1751082167648,0.2064,2421.2,2420.9,4.13068314]
[1751082170450,0.2064,2421.2,2420.9,4.13059353]
[1751082179149,0.2064,2421.2,2420.8,10.79579092]
[1751082180671,0.2064,2421.2,2420.8,6.665]
[1751082181661,0.2064,2421.2,2420.9,6.663]
[1751082184570,6.09140184,2421.3,2420.9,7.92242508]
[1751082184571,1.5061,2421.3,2420.9,7.92242508]
[1751082184868,1.9114,2421.4,2421.0,4.33680968]
[1751082190161,1.9114,2421.4,2421.1,4.13024242]
[1751082190361,1.705,2421.4,2421.2,6.8684]
[1751082196373,1.705,2421.4,2421.2,11.65631119]
[1751082198290,0.002,2421.4,2421.2,11.65631119]
[1751082199957,0.002,2421.4,2421.2,7.52620119]
[1751082205364,0.002,2421.4,2421.2,11.65631521]
[1751082209769,0.002,2421.4,2421.3,4.1300128]
[1751082210109,0.002,2421.4,2421.3,5.91506431]
[1751082216875,0.002,2421.4,2421.3,11.33226615]
[1751082255513,0.002,2421.4,2421.3,56.46756799]
[1751082255701,0.002,2421.4,2421.3,46.16070199]
[1751082256608,0.002,2421.4,2421.3,49.60707899]
[1751082257213,0.002,2421.4,2421.3,37.63422299]
[1751082257400,0.002,2421.4,2421.3,28.94543315]
[1751082257584,0.002,2421.4,2421.3,29.45243315]
[1751082258404,0.002,2421.4,2421.3,28.75053315]
[1751082258604,0.002,2421.4,2421.3,28.90953315]
[1751082259904,0.002,2421.4,2421.3,28.96053315]
[1751082260912,0.002,2421.4,2421.3,32.40253315]
[1751082261119,0.002,2421.4,2421.3,28.96053315]
[1751082262008,0.002,2421.4,2421.3,32.24353315]
[1751082262310,0.002,2421.4,2421.3,28.96053315]
[1751082262923,0.002,2421.4,2421.3,21.88226615]
[1751082263099,0.002,2421.4,2421.3,28.80153315]
[1751082265320,0.002,2421.4,2421.3,21.88226615]
[1751082265527,0.002,2421.4,2421.3,33.18629815]
[1751082268839,0.002,2421.4,2421.3,21.88226615]
[1751082268996,0.002,2421.4,2421.3,33.20495015]
[1751082269197,0.002,2421.4,2421.3,15.91506431]
[1751082269397,0.002,2421.4,2421.3,24.26506431]
[1751082271025,0.002,2421.4,2421.3,15.91506431]
[1751082271233,0.8272,2421.4,2421.3,24.26506431]
[1751082273125,0.8272,2421.4,2421.3,17.61306431]
[1751082273361,0.8272,2421.4,2421.3,24.26506431]
[1751082275460,0.002,2421.4,2421.3,24.26506431]
[1751082277162,0.002,2421.4,2421.3,17.61306431]
[1751082277358,0.002,2421.4,2421.3,24.26506431]
[1751082278138,0.002,2421.4,2421.3,15.91506431]
[1751082278337,0.002,2421.4,2421.3,24.26506431]
[1751082302395,0.002,2421.4,2421.3,52.93744815]
[1751082302900,0.002,2421.4,2421.3,49.93744815]
[1751082303273,0.002,2421.4,2421.3,41.19115815]
[1751082303473,0.002,2421.4,2421.3,37.25640831]
[1751082303679,0.002,2421.4,2421.3,32.18040831]
[1751082304467,0.002,2421.4,2421.3,34.36250831]
[1751082305306,0.002,2421.4,2421.3,39.49781015]
[1751082305502,0.002,2421.4,2421.3,55.45476615]
[1751082306698,0.002,2421.4,2421.3,60.15556615]
[1751082311021,0.002,2421.4,2421.3,34.75340831]
[1751082312036,0.002,2421.4,2421.3,25.56526431]
[1751082312184,0.002,2421.4,2421.3,15.91506431]
[1751082312388,0.002,2421.4,2421.3,17.61106431]
[1751082312747,0.002,2421.4,2421.3,14.3364128]
[1751082312928,0.002,2421.4,2421.3,22.6814128]
[1751082322835,0.002,2421.4,2421.3,14.3364128]
[1751082323134,0.002,2421.4,2421.3,22.6794128]
[1751082323824,0.002,2421.4,2421.3,14.3364128]
[1751082324027,0.002,2421.4,2421.3,20.9844128]
[1751082325004,0.002,2421.4,2421.3,14.3364128]
[1751082325207,7.9021175,2421.4,2419.8,0.787]
[1751082325540,0.8038,2420.5,2420.0,6.678]
[1751082326219,0.8038,2420.5,2420.1,4.13199957]
[1751082326413,0.8038,2420.5,2420.0,4.13218007]
[1751082326619,0.8038,2420.5,2420.1,6.678]
[1751082326823,0.8038,2420.5,2420.1,10.80999765]
[1751082327209,0.8038,2420.5,2420.2,6.677]
[1751082330642,0.8038,2420.5,2420.2,10.80881352]
[1751082331008,0.8038,2420.5,2420.3,4.13170745]
[1751082331211,0.8038,2420.5,2420.4,6.677]
[1751082332470,0.8038,2420.5,2420.4,10.8085485]
[1751082334154,10.0,2421.2,2420.4,10.8085485]
[1751082334359,0.801,2421.0,2420.6,4.13108232]
[1751082334650,0.801,2421.0,2420.7,6.679]
[1751082335272,0.2064,2420.9,2420.7,6.679]
[1751082348200,0.2064,2420.9,2420.7,10.80997854]
[1751082353193,0.2064,2420.9,2420.7,6.679]
[1751082353496,0.801,2421.0,2420.9,4.13069519]
[1751082355500,0.2064,2421.1,2421.0,4.13052457]
[1751082355669,0.2064,2421.1,2421.0,10.80052457]
[1751082357173,0.2064,2421.1,2421.0,6.67]
[1751082357381,0.2064,2421.1,2421.0,10.80052457]
[1751082359308,0.002,2421.4,2421.3,4.1300128]
[1751082359473,0.002,2421.4,2421.3,18.17134992]
[1751082359801,0.002,2421.4,2421.3,18.37774992]
[1751082362320,0.002,2421.4,2421.3,19.14634992]
[1751082364800,0.002,2421.4,2421.3,12.60003242]
[1751082374862,0.002,2421.4,2421.3,14.30703242]
[1751082379770,0.002,2421.4,2421.3,5.93103242]
[1751082379963,0.002,2421.4,2421.3,14.30503242]
[1751082380162,0.002,2421.4,2421.3,13.53643242]
[1751082381072,0.002,2421.4,2421.3,1.03241962]
[1751082381243,0.002,2421.4,2421.3,11.0034128]
[1751082381655,0.7688,2421.4,2421.3,6.8734]
[1751082382071,0.7688,2421.4,2421.3,6.668]
[1751082384651,0.7688,2421.4,2421.3,6.667]
[1751082395003,0.7688,2421.4,2421.3,6.663]
[1751082399417,0.002,2421.4,2421.3,6.663]
[1751082402013,0.8049,2421.3,2420.7,1.706]
[1751082402316,0.2064,2421.2,2420.8,6.66]
[1751082402515,0.2064,2421.2,2420.7,6.04337467]
[1751082402711,0.2064,2421.2,2420.8,6.664]
[1751082403217,0.2064,2421.2,2420.9,4.13058729]
[1751082404713,0.2064,2421.2,2421.0,4.13041161]
[1751082404914,0.2064,2421.2,2421.1,6.663]
[1751082408121,0.2064,2421.2,2421.1,10.79335397]
[1751082408328,0.2084,2421.4,2421.1,6.663]
[1751082408626,0.002,2421.4,2421.1,6.8694]
[1751082409122,0.002,2421.4,2421.1,14.83640925]
[1751082409633,0.002,2421.4,2421.3,4.1300128]
[1751082422638,0.002,2421.4,2421.3,10.7920128]
[1751082425562,0.002,2421.4,2421.3,4.1300128]
[1751082425861,0.002,2421.4,2421.3,10.7910128]
[1751082426061,0.002,2421.4,2421.3,13.12880371]
[1751082427933,0.002,2421.4,2421.3,13.89830371]
[1751082438244,0.002,2421.4,2421.3,13.12880371]
[1751082438774,0.002,2421.4,2421.3,2.33779091]
[1751082438974,0.8088,2421.4,2421.3,6.655]
[1751082440069,0.8088,2421.4,2421.2,0.2064]
[1751082440281,0.8088,2421.4,2421.3,6.657]
[1751082441698,0.8088,2421.4,2421.2,0.2064]
[1751082442257,0.8088,2421.4,2421.3,6.656]
[1751082443875,0.8088,2421.4,2421.2,0.2064]
[1751082444058,0.8088,2421.4,2421.3,6.656]
[1751082445182,0.8088,2421.4,2421.2,0.2064]
[1751082445381,0.8088,2421.4,2421.3,6.655]
[1751082446499,0.8088,2421.4,2421.2,0.2064]
[1751082446654,0.8088,2421.4,2421.3,6.655]
[1751082449897,0.8088,2421.4,2421.2,0.2064]
[1751082450098,0.8088,2421.4,2421.3,6.655]
[1751082450769,0.002,2421.4,2421.3,10.7850128]
[1751082454403,0.002,2421.4,2421.3,4.1300128]
[1751082454902,0.002,2421.4,2421.3,10.7850128]
[1751082466633,0.002,2421.4,2421.3,33.51394462]
[1751082466832,0.002,2421.4,2421.3,30.12809562]
[1751082467434,0.002,2421.4,2421.3,26.51928762]
[1751082467733,0.002,2421.4,2421.3,28.70828762]
[1751082467907,0.002,2421.4,2421.3,26.07114362]
[1751082468643,0.002,2421.4,2421.3,28.03287818]
[1751082468834,0.002,2421.4,2421.3,28.41417818]
[1751082469841,0.002,2421.4,2421.3,26.11567618]
[1751082471055,0.002,2421.4,2421.3,26.61767618]
[1751082471844,0.002,2421.4,2421.3,26.11067618]
[1751082472023,0.002,2421.4,2421.3,25.91567618]
[1751082472949,0.002,2421.4,2421.3,26.46536118]
[1751082473458,0.002,2421.4,2421.3,20.16657618]
[1751082474354,0.002,2421.4,2421.3,14.52926291]
[1751082475232,0.002,2421.4,2421.3,6.17726291]
[1751082475432,0.002,2421.4,2421.3,14.52926291]
[1751082476425,0.002,2421.4,2421.3,6.17726291]
[1751082476624,0.002,2421.4,2421.3,14.52926291]
[1751082479284,0.002,2421.4,2421.3,6.17726291]
[1751082479438,0.002,2421.4,2421.3,12.4820128]
[1751082483050,0.002,2421.4,2421.3,19.02692607]
[1751082483257,0.002,2421.4,2421.3,19.79742607]
[1751082484067,0.002,2421.4,2421.3,23.39637407]
[1751082489666,0.002,2421.4,2421.3,19.79742607]
[1751082489984,0.002,2421.4,2421.3,38.23720607]
[1751082491192,0.002,2421.4,2421.3,33.27920607]
[1751082491397,0.002,2421.4,2421.3,19.79742607]
[1751082492390,0.002,2421.4,2421.3,28.41752607]
[1751082493194,0.002,2421.4,2421.3,19.79742607]
[1751082496590,0.002,2421.4,2421.3,36.62561107]
[1751082496796,0.002,2421.4,2421.3,33.86081607]
[1751082501017,0.002,2421.4,2421.3,19.79742607]
[1751082501314,0.002,2421.4,2421.3,33.86091607]
[1751082502619,0.002,2421.4,2421.3,36.47812442]
[1751082504421,0.002,2421.4,2421.3,46.47812442]
[1751082505722,0.002,2421.4,2421.3,32.41463442]
[1751082505890,0.002,2421.4,2421.3,58.88353542]
[1751082506324,0.002,2421.4,2421.3,55.88353542]
[1751082506887,0.002,2421.4,2421.3,52.88353542]
[1751082509222,0.002,2421.4,2421.3,46.17592542]
[1751082511525,0.002,2421.4,2421.3,32.41463442]
[1751082511693,0.002,2421.4,2421.3,46.68292542]
[1751082513224,0.002,2421.4,2421.3,46.17592542]
[1751082515714,0.002,2421.4,2421.3,44.65992542]
[1751082517298,0.002,2421.4,2421.3,32.41463442]
[1751082517495,0.002,2421.4,2421.3,44.65992542]
[1751082518827,0.002,2421.4,2421.3,32.41463442]
[1751082519032,0.002,2421.4,2421.3,44.65992542]
[1751082521133,0.002,2421.4,2421.3,52.65536142]
[1751082521534,0.002,2421.4,2421.3,49.81221442]
[1751082522134,0.002,2421.4,2421.3,55.81211442]
[1751082523147,0.002,2421.4,2421.3,55.81221442]
[1751082523859,0.002,2421.4,2421.3,45.77987042]
[1751082525157,0.002,2421.4,2421.3,32.41463442]
[1751082525449,0.002,2421.4,2421.3,45.77987042]
[1751082525647,0.002,2421.4,2421.3,45.48807942]
[1751082526220,0.002,2421.4,2421.3,48.77987042]
[1751082527242,0.002,2421.4,2421.3,52.60522042]
[1751082528249,0.002,2421.4,2421.3,32.41463442]
[1751082528448,0.002,2421.4,2421.3,55.60088942]
[1751082529464,0.002,2421.4,2421.3,32.41463442]
[1751082529672,0.002,2421.4,2421.3,55.60088942]
[1751082530765,0.002,2421.4,2421.3,62.41463442]
[1751082531262,0.002,2421.4,2421.3,58.87088942]
[1751082531464,0.002,2421.4,2421.3,55.87088942]
[1751082532627,0.002,2421.4,2421.3,32.41463442]
[1751082532865,0.002,2421.4,2421.3,55.87088942]
[1751082534064,0.002,2421.4,2421.3,56.07088942]
[1751082535159,0.002,2421.4,2421.3,32.41463442]
[1751082535363,0.002,2421.4,2421.3,56.07088942]
[1751082535565,0.002,2421.4,2421.3,46.00209842]
[1751082536463,0.002,2421.4,2421.3,45.93588942]
[1751082538269,0.002,2421.4,2421.3,35.83967242]
[1751082538437,0.002,2421.4,2421.3,18.71107361]
[1751082538764,0.002,2421.4,2421.3,29.83883925]
[1751082539364,0.796,2421.4,2421.3,29.83883925]
[1751082541534,0.796,2421.4,2421.3,4.1300128]
[1751082541733,0.796,2421.4,2421.3,10.7810128]
[1751082542171,0.796,2421.4,2421.3,4.1300128]
[1751082542371,0.796,2421.4,2421.3,10.7810128]
[1751082543050,0.796,2421.4,2421.3,15.36207361]
[1751082544767,0.796,2421.4,2421.3,8.71107361]
[1751082545074,0.796,2421.4,2421.3,15.36207361]
[1751082547476,0.796,2421.4,2421.3,8.71107361]
[1751082547672,0.796,2421.4,2421.3,15.36207361]
[1751082549858,0.796,2421.4,2421.3,8.71107361]
[1751082550471,0.796,2421.4,2421.3,15.36207361]
[1751082550764,0.796,2421.4,2421.3,8.71107361]
[1751082550969,0.796,2421.4,2421.3,15.36207361]
[1751082551869,0.796,2421.4,2421.3,8.71107361]
[1751082552039,0.796,2421.4,2421.3,15.36207361]
[1751082553674,0.002,2421.4,2421.3,15.36207361]
[1751082554973,0.002,2421.4,2421.3,8.71107361]
[1751082555265,0.002,2421.4,2421.3,15.36207361]
[1751082556772,0.002,2421.4,2421.3,8.71107361]
[1751082557073,0.002,2421.4,2421.3,15.36107361]
[1751082557473,0.002,2421.4,2421.3,8.71107361]
[1751082557676,0.002,2421.4,2421.3,15.36107361]
[1751082559978,0.002,2421.4,2421.3,8.71107361]
[1751082560673,0.002,2421.4,2421.3,15.36107361]
[1751082560848,0.002,2421.4,2421.3,8.71107361]
[1751082561047,0.002,2421.4,2421.3,15.36107361]
[1751082561465,0.002,2421.4,2421.3,18.31173925]
[1751082563183,0.002,2421.4,2421.3,17.50053925]
[1751082570301,0.002,2421.4,2421.2,0.2064]
[1751082570302,0.8223,2421.4,2421.2,0.2064]
[1751082570475,0.8223,2421.4,2421.3,10.7800128]
[1751082580211,0.8223,2421.4,2421.3,10.7790128]
[1751082581612,0.8223,2421.4,2421.3,4.1300128]
[1751082581784,0.8223,2421.4,2421.3,10.7790128]
[1751082582914,0.8223,2421.4,2421.3,6.649]
[1751082583214,0.8223,2421.4,2421.3,10.7790128]
[1751082585186,0.8223,2421.4,2421.3,4.1300128]
[1751082585387,0.8223,2421.4,2421.3,10.7790128]
[1751082586320,0.8223,2421.4,2421.3,4.1300128]
[1751082586519,0.8223,2421.4,2421.3,10.7790128]
[1751082587726,0.8223,2421.4,2421.3,4.1300128]
[1751082588019,0.8223,2421.4,2421.3,6.649]
[1751082588220,0.8223,2421.4,2421.3,10.7790128]
[1751082589422,0.002,2421.4,2421.3,10.7790128]
[1751082590418,0.002,2421.4,2421.3,4.1300128]
[1751082590630,0.002,2421.4,2421.3,10.7790128]
[1751082591520,0.002,2421.4,2421.3,4.1300128]
[1751082591820,0.002,2421.4,2421.3,6.649]
[1751082592026,0.7848,2421.3,2421.2,8.91758544]
[1751082592226,0.7848,2421.3,2421.2,15.56658544]
[1751082593697,0.002,2421.4,2421.2,15.56658544]
[1751082593899,0.002,2421.4,2421.3,4.1300128]
[1751082594896,0.002,2421.4,2421.3,10.7790128]
[1751082595508,0.002,2421.4,2421.3,4.1300128]
[1751082595695,0.002,2421.4,2421.3,10.7790128]
[1751082596037,0.002,2421.4,2421.3,4.1300128]
[1751082596202,0.002,2421.4,2421.3,10.7790128]
[1751082597532,0.002,2421.4,2421.3,6.649]
[1751082597728,0.002,2421.4,2421.2,4.33653007]
[1751082597902,0.002,2421.4,2421.3,6.649]
[1751082598432,0.002,2421.4,2421.2,4.33653007]
[1751082598638,0.002,2421.4,2421.3,6.649]
[1751082601644,0.002,2421.4,2421.3,6.648]
[1751082602442,0.002,2421.4,2421.3,10.7780128]
[1751082602739,0.002,2421.4,2421.3,15.35907361]
[1751082603205,0.002,2421.4,2421.3,17.32863862]
[1751082610758,0.002,2421.4,2421.3,21.90969943]
[1751082611431,0.002,2421.4,2421.3,17.32863862]
[1751082611864,0.002,2421.4,2421.3,19.02363862]
[1751082645997,0.002,2421.4,2421.3,14.89362582]
[1751082646175,0.002,2421.4,2421.3,12.92406081]
[1751082650120,0.002,2421.4,2421.3,4.58106081]
[1751082650416,0.002,2421.4,2421.3,11.22606081]
[1751082650986,0.002,2421.4,2421.3,12.92006081]
[1751082653198,0.002,2421.4,2421.3,17.05007361]
[1751082655297,0.002,2421.4,2421.3,19.18873869]
[1751082655490,0.002,2421.4,2421.3,23.7697995]
[1751082658110,0.002,2421.4,2421.3,63.7693135]
[1751082658695,0.002,2421.4,2421.3,64.5519995]
[1751082659211,0.002,2421.4,2421.3,60.7516405]
[1751082659416,0.002,2421.4,2421.3,60.5134545]
[1751082659618,0.002,2421.4,2421.3,60.5135545]
[1751082660415,0.002,2421.4,2421.3,61.0635545]
[1751082660597,0.002,2421.4,2421.3,65.1019995]
[1751082661527,0.002,2421.8,2421.7,4.12933063]
[1751082661702,0.002,2421.8,2421.7,16.96247392]
[1751082661901,0.002,2421.8,2421.7,17.16887392]
[1751082668025,0.002,2421.8,2421.7,16.38667392]
[1751082669446,0.002,2421.8,2421.7,9.74267392]
[1751082669646,0.002,2421.8,2421.7,4.78746081]
[1751082669848,0.7567,2421.8,2421.7,6.643]
[1751082670147,0.7567,2421.8,2421.6,1.692]
[1751082670448,0.7567,2421.8,2421.7,6.643]
[1751082673339,0.7567,2421.8,2421.6,1.692]
[1751082673544,0.7567,2421.8,2421.7,6.643]
[1751082673749,1.24565635,2421.8,2421.7,6.643]
[1751082674844,0.7567,2421.8,2421.7,6.643]
[1751082679413,0.002,2421.8,2421.7,10.77233063]
[1751082680037,0.002,2421.8,2421.7,6.643]
[1751082684655,0.002,2421.8,2421.7,10.77233063]
[1751082686719,0.002,2421.8,2421.7,10.97873063]
[1751082695663,0.002,2421.8,2421.7,4.33573063]
[1751082695867,0.002,2421.8,2421.7,6.8484]
[1751082697763,0.002,2421.8,2421.7,0.2064]
[1751082697953,0.002,2421.8,2421.7,6.642]
[1751082699943,0.002,2421.8,2421.6,0.2064]
[1751082700470,0.002,2421.8,2421.7,6.642]
[1751082702874,0.002,2421.8,2421.6,0.2064]
[1751082703077,0.002,2421.8,2421.7,6.642]
[1751082704482,0.002,2421.8,2421.6,0.2064]
[1751082704663,0.002,2421.8,2421.7,6.642]
[1751082705472,0.002,2421.8,2421.7,11.22358845]
[1751082705655,0.002,2421.8,2421.7,12.57298729]
[1751082706377,0.002,2421.8,2421.7,11.42998845]
[1751082706758,0.002,2421.8,2421.7,15.55931908]
[1751082708594,0.002,2421.8,2421.7,10.97773063]
[1751082716490,0.002,2421.8,2421.7,6.641]
[1751082726003,0.002,2421.8,2421.5,0.2064]
[1751082726181,0.9753,2421.7,2421.6,6.641]
[1751082727300,0.9753,2421.7,2421.3,6.02740152]
[1751082727484,0.9753,2421.7,2421.4,6.641]
[1751082728708,0.9753,2421.7,2421.4,10.77081387]
[1751082729309,0.9753,2421.7,2421.4,6.641]
[1751082730703,0.2064,2421.7,2421.6,6.54450043]
[1751082730873,0.002,2421.8,2421.6,6.54450043]
[1751082731078,0.002,2421.8,2421.7,6.646]
[1751082760426,0.002,2421.8,2421.5,0.9798]
[1751082760614,0.8283,2421.8,2421.6,6.641]
[1751082760818,0.2064,2421.7,2421.3,1.8974]
[1751082761127,0.2064,2421.7,2421.4,6.641]
[1751082761333,4.12950692,2421.6,2421.0,6.60267901]
[1751082761505,1.42115069,2421.5,2421.1,6.641]
[1751082761834,1.0082,2421.5,2421.1,6.641]
[1751082762040,1.0082,2421.5,2421.1,10.77132982]
[1751082763018,1.0082,2421.5,2421.2,6.641]
[1751082764235,1.0082,2421.5,2421.3,6.642]
[1751082764436,1.0082,2421.5,2421.0,4.33686297]
[1751082764652,1.52197065,2421.5,2421.0,0.2064]
[1751082764830,5.13789005,2421.5,2421.1,6.642]
[1751082765609,1.0082,2421.5,2421.1,6.642]
[1751082766020,1.0082,2421.5,2421.0,4.3369122]